[Event "*** SCC Grand Prix: Titled Tuesday Blitz"]
[Site "Chess.com"]
[Date "2020.08.25"]
[Round "3"]
[White "26andrej26"]
[Black "michaelk123"]
[Result "1-0"]
[WhiteElo "2618"]
[BlackElo "2396"]
[TimeControl "180+1"]
[EndTime "10:30:26 PDT"]
[Termination "26andrej26 won on time"]

1. e4 {[%clk 0:03:00.9]} 1... c6 {[%clk 0:02:59.7]} 2. d4 {[%clk 0:03:01]} 2...
d5 {[%clk 0:03:00.1]} 3. Nc3 {[%clk 0:03:01.9]} 3... dxe4 {[%clk 0:02:59.1]} 4.
Nxe4 {[%clk 0:03:02.8]} 4... Bf5 {[%clk 0:02:58.7]} 5. Ng3 {[%clk 0:03:03]} 5...
Bg6 {[%clk 0:02:59]} 6. h4 {[%clk 0:03:03.9]} 6... h6 {[%clk 0:02:58.7]} 7. Nf3
{[%clk 0:03:04.5]} 7... e6 {[%clk 0:02:58.4]} 8. Ne5 {[%clk 0:03:04.1]} 8... Bh7
{[%clk 0:02:57]} 9. Bd3 {[%clk 0:03:05]} 9... Bxd3 {[%clk 0:02:54.3]} 10. Qxd3
{[%clk 0:03:05.9]} 10... Nd7 {[%clk 0:02:53.1]} 11. Qe2 {[%clk 0:03:06.1]} 11...
Be7 {[%clk 0:02:46.3]} 12. Bd2 {[%clk 0:03:05.6]} 12... Ngf6 {[%clk 0:02:18.4]}
13. O-O-O {[%clk 0:03:04.7]} 13... Qc7 {[%clk 0:02:03.4]} 14. Nf1 {[%clk
0:02:56.8]} 14... Nxe5 {[%clk 0:01:59.3]} 15. dxe5 {[%clk 0:02:56.8]} 15... Nd7
{[%clk 0:01:58.8]} 16. f4 {[%clk 0:02:56.4]} 16... h5 {[%clk 0:01:51.9]} 17. Qf2
{[%clk 0:02:38.3]} 17... Qb6 {[%clk 0:01:35.5]} 18. Be3 {[%clk 0:02:36.8]} 18...
Bc5 {[%clk 0:01:22.6]} 19. Bxc5 {[%clk 0:02:36.1]} 19... Qxc5 {[%clk 0:01:21.5]}
20. Qxc5 {[%clk 0:02:21.6]} 20... Nxc5 {[%clk 0:01:20.9]} 21. Ne3 {[%clk
0:02:22.5]} 21... b5 {[%clk 0:00:55.3]} 22. Rd6 {[%clk 0:02:18.6]} 22... Rc8
{[%clk 0:00:54.4]} 23. Rhd1 {[%clk 0:02:03.1]} 23... O-O {[%clk 0:00:46.9]} 24.
R1d4 {[%clk 0:01:45.1]} 24... a5 {[%clk 0:00:42.5]} 25. a3 {[%clk 0:01:36.2]}
25... a4 {[%clk 0:00:42.3]} 26. Kd1 {[%clk 0:01:07.5]} 26... Rc7 {[%clk
0:00:42.7]} 27. c4 {[%clk 0:01:02.5]} 27... Rfc8 {[%clk 0:00:35.4]} 28. Kc2
{[%clk 0:01:00.1]} 28... Nb7 {[%clk 0:00:27.8]} 29. Rd7 {[%clk 0:00:58.1]} 29...
Nc5 {[%clk 0:00:25.6]} 30. Rd8+ {[%clk 0:00:47.2]} 30... Rxd8 {[%clk 0:00:22.6]}
31. Rxd8+ {[%clk 0:00:48.1]} 31... Kh7 {[%clk 0:00:22.5]} 32. Kc3 {[%clk
0:00:35.9]} 32... Kg6 {[%clk 0:00:18.5]} 33. Kb4 {[%clk 0:00:31.9]} 33... Ne4
{[%clk 0:00:15.3]} 34. cxb5 {[%clk 0:00:21.8]} 34... Rb7 {[%clk 0:00:08.5]} 35.
Kxa4 {[%clk 0:00:21.4]} 35... Rxb5 {[%clk 0:00:07.5]} 36. b4 {[%clk 0:00:21.5]}
36... Nc3+ {[%clk 0:00:05.5]} 37. Kb3 {[%clk 0:00:20.6]} 37... Ne2 {[%clk
0:00:05.7]} 38. a4 {[%clk 0:00:13.1]} 38... Rb7 {[%clk 0:00:05.9]} 39. a5 {[%clk
0:00:13.2]} 39... Nxf4 {[%clk 0:00:05.9]} 40. Kc4 {[%clk 0:00:10.7]} 1-0

[Event "*** SCC Grand Prix: Titled Tuesday Blitz"]
[Site "Chess.com"]
[Date "2020.08.25"]
[Round "3"]
[White "rdclayton"]
[Black "Mr_Sinigami"]
[Result "0-1"]
[WhiteElo "2342"]
[BlackElo "2536"]
[TimeControl "180+1"]
[EndTime "10:30:26 PDT"]
[Termination "Mr_Sinigami won by resignation"]

1. e4 {[%clk 0:03:00.9]} 1... c5 {[%clk 0:02:57.9]} 2. Nf3 {[%clk 0:03:01]} 2...
e6 {[%clk 0:02:57.9]} 3. d4 {[%clk 0:03:01.1]} 3... cxd4 {[%clk 0:02:58.2]} 4.
Nxd4 {[%clk 0:03:02]} 4... a6 {[%clk 0:02:58.9]} 5. Bd3 {[%clk 0:03:00]} 5...
Nf6 {[%clk 0:02:58.4]} 6. O-O {[%clk 0:02:56.8]} 6... Qc7 {[%clk 0:02:58.3]} 7.
Nc3 {[%clk 0:02:55.3]} 7... Nc6 {[%clk 0:02:57.8]} 8. Be3 {[%clk 0:02:52.6]}
8... Ne5 {[%clk 0:02:47.9]} 9. h3 {[%clk 0:02:50.5]} 9... d6 {[%clk 0:02:42.7]}
10. f4 {[%clk 0:02:48.2]} 10... Nc4 {[%clk 0:02:41.9]} 11. Bxc4 {[%clk
0:02:41.7]} 11... Qxc4 {[%clk 0:02:41.3]} 12. Qd3 {[%clk 0:02:42.1]} 12... Qc7
{[%clk 0:02:34.3]} 13. a4 {[%clk 0:02:36.4]} 13... Be7 {[%clk 0:02:33.6]} 14.
Rae1 {[%clk 0:02:30.8]} 14... O-O {[%clk 0:02:31.8]} 15. Kh1 {[%clk 0:02:25.6]}
15... b6 {[%clk 0:02:31.4]} 16. Nf3 {[%clk 0:02:01.1]} 16... Bb7 {[%clk
0:02:29.3]} 17. e5 {[%clk 0:01:59.7]} 17... dxe5 {[%clk 0:02:18.5]} 18. fxe5
{[%clk 0:01:50]} 18... Nd5 {[%clk 0:02:17.8]} 19. Nxd5 {[%clk 0:01:05.8]} 19...
Bxd5 {[%clk 0:02:16.1]} 20. Ng5 {[%clk 0:01:06.1]} 20... Bxg5 {[%clk 0:02:09.8]}
21. Bxg5 {[%clk 0:01:07]} 21... Rac8 {[%clk 0:02:07.5]} 22. c3 {[%clk
0:00:57.8]} 22... Bc4 {[%clk 0:02:03]} 23. Qg3 {[%clk 0:00:57.6]} 23... Bxf1
{[%clk 0:01:49.8]} 24. Bf6 {[%clk 0:00:57.3]} 24... g6 {[%clk 0:01:49.1]} 25.
Qf4 {[%clk 0:00:55.5]} 25... Bxg2+ {[%clk 0:01:33.7]} 26. Kxg2 {[%clk
0:00:54.9]} 26... Qc6+ {[%clk 0:01:14.1]} 27. Kh2 {[%clk 0:00:50.6]} 27... Qc5
{[%clk 0:01:13.7]} 28. Qh6 {[%clk 0:00:09.8]} 28... Qf2+ {[%clk 0:01:12.1]} 29.
Kh1 {[%clk 0:00:10.1]} 29... Qxe1+ {[%clk 0:00:53.1]} 30. Kg2 {[%clk 0:00:10.2]}
30... Qe2+ {[%clk 0:00:52.7]} 31. Kg3 {[%clk 0:00:09.3]} 31... Qe1+ {[%clk
0:00:48.4]} 32. Kg2 {[%clk 0:00:07.3]} 32... Qe4+ {[%clk 0:00:41.1]} 33. Kg1
{[%clk 0:00:06.5]} 33... Qb1+ {[%clk 0:00:40.3]} 34. Kg2 {[%clk 0:00:05.2]}
34... Qxb2+ {[%clk 0:00:40.1]} 35. Kg1 {[%clk 0:00:05.4]} 35... Qb1+ {[%clk
0:00:29]} 36. Kg2 {[%clk 0:00:05.2]} 36... Qe4+ {[%clk 0:00:28.2]} 37. Kg1
{[%clk 0:00:05.6]} 37... Qe1+ {[%clk 0:00:26.6]} 38. Kg2 {[%clk 0:00:05.8]}
38... Qe2+ {[%clk 0:00:25.4]} 39. Kg1 {[%clk 0:00:06.1]} 39... Qd1+ {[%clk
0:00:21.4]} 40. Kg2 {[%clk 0:00:06.3]} 40... Qc2+ {[%clk 0:00:22]} 41. Kg1
{[%clk 0:00:06.7]} 41... Qb1+ {[%clk 0:00:22.5]} 42. Kg2 {[%clk 0:00:06.7]}
42... Qa2+ {[%clk 0:00:23.1]} 43. Kg1 {[%clk 0:00:07]} 43... Qa1+ {[%clk
0:00:23.7]} 44. Kg2 {[%clk 0:00:07.4]} 44... Qb2+ {[%clk 0:00:24.3]} 45. Kg1
{[%clk 0:00:07.7]} 45... Qc1+ {[%clk 0:00:25.2]} 46. Kg2 {[%clk 0:00:08.1]}
46... Qxh6 {[%clk 0:00:25]} 0-1

[Event "*** SCC Grand Prix: Titled Tuesday Blitz"]
[Site "Chess.com"]
[Date "2020.08.25"]
[Round "3"]
[White "Roza_Idrisova"]
[Black "NoboaKevin1999"]
[Result "0-1"]
[WhiteElo "2203"]
[BlackElo "2441"]
[TimeControl "180+1"]
[EndTime "10:30:27 PDT"]
[Termination "NoboaKevin1999 won on time"]

1. d4 {[%clk 0:03:00.9]} 1... Nf6 {[%clk 0:02:59.4]} 2. Nf3 {[%clk 0:03:00.1]}
2... g6 {[%clk 0:02:59.1]} 3. c4 {[%clk 0:02:59.4]} 3... Bg7 {[%clk 0:02:58]} 4.
Nc3 {[%clk 0:02:59.3]} 4... d5 {[%clk 0:02:56.5]} 5. cxd5 {[%clk 0:02:57.1]}
5... Nxd5 {[%clk 0:02:56.8]} 6. e4 {[%clk 0:02:57.5]} 6... Nxc3 {[%clk
0:02:56.4]} 7. bxc3 {[%clk 0:02:58]} 7... c5 {[%clk 0:02:56.9]} 8. Bb5+ {[%clk
0:02:58.1]} 8... Nd7 {[%clk 0:02:50.2]} 9. O-O {[%clk 0:02:56.7]} 9... O-O
{[%clk 0:02:49.9]} 10. Be3 {[%clk 0:02:56.3]} 10... a6 {[%clk 0:02:43.2]} 11.
Be2 {[%clk 0:02:49.2]} 11... b6 {[%clk 0:02:39.8]} 12. a4 {[%clk 0:02:47.5]}
12... Bb7 {[%clk 0:02:39.2]} 13. Qc2 {[%clk 0:02:35.1]} 13... Rc8 {[%clk
0:02:37.9]} 14. d5 {[%clk 0:02:34.8]} 14... c4 {[%clk 0:02:21.2]} 15. Rab1
{[%clk 0:02:32.9]} 15... Qc7 {[%clk 0:02:17.5]} 16. Nd2 {[%clk 0:02:21.3]} 16...
f5 {[%clk 0:02:05.2]} 17. Nxc4 {[%clk 0:02:16]} 17... fxe4 {[%clk 0:02:01.8]}
18. Qxe4 {[%clk 0:02:11.9]} 18... Nc5 {[%clk 0:01:48.1]} 19. Qg4 {[%clk
0:01:51.6]} 19... Nxa4 {[%clk 0:01:08.7]} 20. Qe6+ {[%clk 0:01:38.5]} 20... Kh8
{[%clk 0:01:08.1]} 21. Nxb6 {[%clk 0:01:32.3]} 21... Nxc3 {[%clk 0:01:04]} 22.
Bf3 {[%clk 0:01:18.2]} 22... Nxb1 {[%clk 0:01:00.3]} 23. Rxb1 {[%clk 0:01:11.6]}
23... Rb8 {[%clk 0:00:56.5]} 24. Rc1 {[%clk 0:01:07.8]} 24... Qd8 {[%clk
0:00:44.1]} 25. Nd7 {[%clk 0:00:27.7]} 25... Bc8 {[%clk 0:00:41.7]} 26. Bg4
{[%clk 0:00:15.9]} 26... Bxd7 {[%clk 0:00:37]} 27. Qxd7 {[%clk 0:00:15.2]} 27...
Qxd7 {[%clk 0:00:35.3]} 28. Bxd7 {[%clk 0:00:15.1]} 28... a5 {[%clk 0:00:30.9]}
29. g3 {[%clk 0:00:12.2]} 29... Rfd8 {[%clk 0:00:29.7]} 30. Bc6 {[%clk
0:00:09.5]} 30... Bf6 {[%clk 0:00:19.2]} 31. Rc5 {[%clk 0:00:09.1]} 31... Rb1+
{[%clk 0:00:12.5]} 32. Kg2 {[%clk 0:00:08.9]} 32... Ra1 {[%clk 0:00:12.8]} 33.
Rb5 {[%clk 0:00:06.5]} 33... a4 {[%clk 0:00:10.5]} 34. Ra5 {[%clk 0:00:06.6]}
34... a3 {[%clk 0:00:09.8]} 35. Bc5 {[%clk 0:00:05.3]} 35... a2 {[%clk
0:00:08.4]} 36. Ra6 {[%clk 0:00:04.7]} 36... Rc1 {[%clk 0:00:08.2]} 0-1

[Event "*** SCC Grand Prix: Titled Tuesday Blitz"]
[Site "Chess.com"]
[Date "2020.08.25"]
[Round "3"]
[White "Barmen_EV"]
[Black "UmbertoConcelli"]
[Result "1-0"]
[WhiteElo "2441"]
[BlackElo "2718"]
[TimeControl "180+1"]
[EndTime "10:30:28 PDT"]
[Termination "Barmen_EV won by resignation"]

1. d4 {[%clk 0:03:00.9]} 1... d5 {[%clk 0:02:44.6]} 2. c4 {[%clk 0:03:01.8]}
2... e6 {[%clk 0:02:44.2]} 3. Nc3 {[%clk 0:03:01.7]} 3... Be7 {[%clk 0:02:43.9]}
4. cxd5 {[%clk 0:03:01.7]} 4... exd5 {[%clk 0:02:43.9]} 5. Bf4 {[%clk
0:03:02.6]} 5... Nf6 {[%clk 0:02:43.6]} 6. e3 {[%clk 0:03:03]} 6... O-O {[%clk
0:02:43]} 7. Bd3 {[%clk 0:03:02.3]} 7... c6 {[%clk 0:02:33]} 8. Nge2 {[%clk
0:02:57.7]} 8... Bg4 {[%clk 0:02:31.1]} 9. f3 {[%clk 0:02:57.1]} 9... Bh5 {[%clk
0:02:31.2]} 10. g4 {[%clk 0:02:57.8]} 10... Bg6 {[%clk 0:02:31.3]} 11. h4 {[%clk
0:02:58.5]} 11... Bd6 {[%clk 0:02:26.6]} 12. h5 {[%clk 0:02:57.3]} 12... Bxd3
{[%clk 0:02:24.9]} 13. Qxd3 {[%clk 0:02:58.2]} 13... Ne8 {[%clk 0:02:16.6]} 14.
O-O-O {[%clk 0:02:51.7]} 14... Na6 {[%clk 0:02:16.1]} 15. e4 {[%clk 0:02:46.2]}
15... Bxf4+ {[%clk 0:02:14.9]} 16. Nxf4 {[%clk 0:02:45.9]} 16... dxe4 {[%clk
0:02:06.8]} 17. fxe4 {[%clk 0:02:45.3]} 17... Qg5 {[%clk 0:02:04.6]} 18. Qd2
{[%clk 0:02:37.3]} 18... Nd6 {[%clk 0:01:59.8]} 19. Kb1 {[%clk 0:02:30.9]} 19...
Rad8 {[%clk 0:01:47.5]} 20. e5 {[%clk 0:02:18.5]} 20... Nc4 {[%clk 0:01:46.4]}
21. Qc1 {[%clk 0:02:19.4]} 21... Qxg4 {[%clk 0:01:40.8]} 22. Rhg1 {[%clk
0:02:16.6]} 22... Qf5+ {[%clk 0:01:40.8]} 23. Ka1 {[%clk 0:02:17.5]} 23... Nb4
{[%clk 0:01:40.4]} 24. Rg2 {[%clk 0:02:08.5]} 24... Kh8 {[%clk 0:01:26.4]} 25.
Rdg1 {[%clk 0:02:06.6]} 25... Rg8 {[%clk 0:01:25.8]} 26. Rh1 {[%clk 0:01:46.2]}
26... g5 {[%clk 0:00:27.2]} 27. hxg6 {[%clk 0:01:41.8]} 27... fxg6 {[%clk
0:00:27.1]} 28. Rgh2 {[%clk 0:00:18.5]} 28... Rg7 {[%clk 0:00:26.7]} 29. a3
{[%clk 0:00:19.1]} 29... Rxd4 {[%clk 0:00:21.6]} 30. axb4 {[%clk 0:00:18.1]}
30... Rxf4 {[%clk 0:00:20.6]} 31. Qd1 {[%clk 0:00:15.1]} 31... Nxe5 {[%clk
0:00:16.3]} 32. Qd8+ {[%clk 0:00:11.4]} 32... Qf8 {[%clk 0:00:16.3]} 33. Qg5
{[%clk 0:00:09.2]} 33... Rf5 {[%clk 0:00:15.3]} 34. Qh6 {[%clk 0:00:07.2]} 34...
Ng4 {[%clk 0:00:13.8]} 35. Qxh7+ {[%clk 0:00:03.7]} 35... Rxh7 {[%clk
0:00:13.9]} 36. Rxh7+ {[%clk 0:00:04.6]} 36... Kg8 {[%clk 0:00:14.8]} 37. Rh8+
{[%clk 0:00:04.8]} 37... Kg7 {[%clk 0:00:15.1]} 38. R1h7+ {[%clk 0:00:05.3]}
38... Kf6 {[%clk 0:00:15.2]} 39. Rxf8+ {[%clk 0:00:05.6]} 39... Kg5 {[%clk
0:00:16.1]} 40. Rxf5+ {[%clk 0:00:06]} 1-0

[Event "*** SCC Grand Prix: Titled Tuesday Blitz"]
[Site "Chess.com"]
[Date "2020.08.25"]
[Round "3"]
[White "Zmeeed63"]
[Black "RodinMihail"]
[Result "0-1"]
[WhiteElo "2264"]
[BlackElo "2503"]
[TimeControl "180+1"]
[EndTime "10:30:28 PDT"]
[Termination "RodinMihail won on time"]

1. d4 {[%clk 0:03:00.9]} 1... d5 {[%clk 0:02:59.8]} 2. c4 {[%clk 0:03:01.2]}
2... e6 {[%clk 0:02:59.7]} 3. Nc3 {[%clk 0:03:01.6]} 3... c6 {[%clk 0:02:59.9]}
4. e3 {[%clk 0:03:01.4]} 4... Nf6 {[%clk 0:02:59.9]} 5. Nf3 {[%clk 0:03:01.8]}
5... Nbd7 {[%clk 0:03:00.5]} 6. Bd3 {[%clk 0:03:02.2]} 6... Bd6 {[%clk
0:03:01.1]} 7. e4 {[%clk 0:03:02.3]} 7... dxe4 {[%clk 0:03:00.7]} 8. Nxe4 {[%clk
0:03:03.2]} 8... Nxe4 {[%clk 0:03:01.5]} 9. Bxe4 {[%clk 0:03:04.1]} 9... O-O
{[%clk 0:03:01.8]} 10. O-O {[%clk 0:03:04.1]} 10... Re8 {[%clk 0:03:02]} 11. Bc2
{[%clk 0:02:57.1]} 11... e5 {[%clk 0:03:00.9]} 12. Bg5 {[%clk 0:02:30.8]} 12...
f6 {[%clk 0:02:56.4]} 13. Bh4 {[%clk 0:02:16.4]} 13... e4 {[%clk 0:02:52.6]} 14.
Nd2 {[%clk 0:02:14.9]} 14... e3 {[%clk 0:02:33.8]} 15. fxe3 {[%clk 0:02:11.6]}
15... Rxe3 {[%clk 0:02:34.7]} 16. Ne4 {[%clk 0:01:52.5]} 16... Qe7 {[%clk
0:02:09.7]} 17. Qh5 {[%clk 0:00:48.4]} 17... Rxe4 {[%clk 0:01:54.7]} 18. Bxe4
{[%clk 0:00:48.7]} 18... Qxe4 {[%clk 0:01:53.9]} 19. Rae1 {[%clk 0:00:49.3]}
19... Qxd4+ {[%clk 0:01:45.9]} 20. Bf2 {[%clk 0:00:48.1]} 20... Qxc4 {[%clk
0:01:45.6]} 21. Re8+ {[%clk 0:00:37.9]} 21... Nf8 {[%clk 0:01:45.5]} 22. Rfe1
{[%clk 0:00:33.8]} 22... Qf7 {[%clk 0:01:32]} 23. Qd1 {[%clk 0:00:32.2]} 23...
Be5 {[%clk 0:01:28.2]} 24. Qd8 {[%clk 0:00:29]} 24... Bd7 {[%clk 0:01:00.3]} 25.
Rxf8+ {[%clk 0:00:28.8]} 25... Qxf8 {[%clk 0:01:00.4]} 26. Qxd7 {[%clk
0:00:29.7]} 26... Qc8 {[%clk 0:00:58]} 27. Qd3 {[%clk 0:00:25.1]} 27... Qc7
{[%clk 0:00:56.4]} 28. h3 {[%clk 0:00:20.8]} 28... Rd8 {[%clk 0:00:55.9]} 29.
Qb3+ {[%clk 0:00:19.7]} 29... Qf7 {[%clk 0:00:54.7]} 30. Qb4 {[%clk 0:00:16.2]}
30... b6 {[%clk 0:00:52.8]} 31. b3 {[%clk 0:00:16.4]} 31... c5 {[%clk
0:00:52.6]} 32. Qe4 {[%clk 0:00:16.5]} 32... Qd5 {[%clk 0:00:46.9]} 33. Qf5
{[%clk 0:00:16.7]} 33... Qd7 {[%clk 0:00:38.8]} 34. Qf3 {[%clk 0:00:15.1]} 34...
Qd2 {[%clk 0:00:36.6]} 35. Re2 {[%clk 0:00:09.9]} 35... Qc1+ {[%clk 0:00:31.7]}
36. Re1 {[%clk 0:00:06.7]} 36... Qb2 {[%clk 0:00:31.1]} 37. Qb7 {[%clk
0:00:02.1]} 37... Qxa2 {[%clk 0:00:25.9]} 38. Bh4 {[%clk 0:00:02.7]} 38... Rd2
{[%clk 0:00:19.8]} 39. Rxe5 {[%clk 0:00:02.2]} 39... Qa1+ {[%clk 0:00:17.4]} 40.
Re1 {[%clk 0:00:01.4]} 40... Qxe1+ {[%clk 0:00:17]} 0-1

[Event "*** SCC Grand Prix: Titled Tuesday Blitz"]
[Site "Chess.com"]
[Date "2020.08.25"]
[Round "3"]
[White "SavelievAlexei"]
[Black "Volodar_Murzin"]
[Result "0-1"]
[WhiteElo "2400"]
[BlackElo "2662"]
[TimeControl "180+1"]
[EndTime "10:30:30 PDT"]
[Termination "Volodar_Murzin won by resignation"]

1. e4 {[%clk 0:03:00.9]} 1... c5 {[%clk 0:02:55]} 2. Nf3 {[%clk 0:02:49.1]} 2...
d6 {[%clk 0:02:53.6]} 3. d4 {[%clk 0:02:49.4]} 3... cxd4 {[%clk 0:02:52.8]} 4.
Nxd4 {[%clk 0:02:50.3]} 4... Nf6 {[%clk 0:02:52.3]} 5. Nc3 {[%clk 0:02:50.9]}
5... a6 {[%clk 0:02:52.1]} 6. Bg5 {[%clk 0:02:50.1]} 6... Nbd7 {[%clk
0:02:51.3]} 7. f4 {[%clk 0:02:43.4]} 7... Qc7 {[%clk 0:02:45.5]} 8. Qf3 {[%clk
0:02:43.3]} 8... e5 {[%clk 0:02:35.2]} 9. Nf5 {[%clk 0:02:38.9]} 9... h6 {[%clk
0:02:23.4]} 10. Bxf6 {[%clk 0:02:33.7]} 10... Nxf6 {[%clk 0:02:22]} 11. O-O-O
{[%clk 0:02:33.4]} 11... Be6 {[%clk 0:02:02.4]} 12. g4 {[%clk 0:02:27.3]} 12...
exf4 {[%clk 0:01:35.2]} 13. Qxf4 {[%clk 0:02:26.7]} 13... O-O-O {[%clk
0:01:30.5]} 14. Be2 {[%clk 0:02:08.1]} 14... d5 {[%clk 0:01:08.5]} 15. e5 {[%clk
0:01:59.9]} 15... g5 {[%clk 0:00:56.4]} 16. Qg3 {[%clk 0:01:52.9]} 16... Ng8
{[%clk 0:00:37.3]} 17. Rd3 {[%clk 0:01:28.9]} 17... Ne7 {[%clk 0:00:10.8]} 18.
Nd6+ {[%clk 0:01:27.8]} 18... Kb8 {[%clk 0:00:10.3]} 19. Rhd1 {[%clk 0:01:20.5]}
19... Bg7 {[%clk 0:00:09.9]} 20. Nxd5 {[%clk 0:00:42.6]} 20... Nxd5 {[%clk
0:00:06.7]} 21. Rxd5 {[%clk 0:00:43.5]} 21... Bxd5 {[%clk 0:00:07.2]} 22. Rxd5
{[%clk 0:00:42.8]} 22... Rd7 {[%clk 0:00:03.7]} 23. c4 {[%clk 0:00:24.5]} 23...
Rhd8 {[%clk 0:00:03.7]} 24. c5 {[%clk 0:00:24.3]} 24... Re7 {[%clk 0:00:03.8]}
25. Bc4 {[%clk 0:00:20.4]} 25... f6 {[%clk 0:00:03.9]} 26. exf6 {[%clk
0:00:15.8]} 26... Bxf6 {[%clk 0:00:03.7]} 27. Qd3 {[%clk 0:00:15.4]} 27... Be5
{[%clk 0:00:03.5]} 28. b4 {[%clk 0:00:06.5]} 28... Bf4+ {[%clk 0:00:03.6]} 29.
Kc2 {[%clk 0:00:06.6]} 29... Rdd7 {[%clk 0:00:03.6]} 30. a4 {[%clk 0:00:05.6]}
30... Qc6 {[%clk 0:00:03.6]} 31. Bb3 {[%clk 0:00:04.7]} 31... Bxd6 {[%clk
0:00:02.3]} 32. b5 {[%clk 0:00:04.8]} 32... Qxc5+ {[%clk 0:00:01.9]} 33. Rxc5
{[%clk 0:00:04.7]} 33... Bxc5 {[%clk 0:00:02.4]} 34. Qc4 {[%clk 0:00:03.8]}
34... axb5 {[%clk 0:00:02.9]} 35. Qxc5 {[%clk 0:00:03.9]} 35... Rc7 {[%clk
0:00:03.2]} 36. Qxc7+ {[%clk 0:00:04.5]} 36... Rxc7+ {[%clk 0:00:03.9]} 37. Kb2
{[%clk 0:00:05.4]} 37... bxa4 {[%clk 0:00:04.4]} 38. Bxa4 {[%clk 0:00:06.3]}
38... Ka7 {[%clk 0:00:04.9]} 0-1

[Event "*** SCC Grand Prix: Titled Tuesday Blitz"]
[Site "Chess.com"]
[Date "2020.08.25"]
[Round "3"]
[White "annamaja"]
[Black "Sn00pPawn"]
[Result "0-1"]
[WhiteElo "2261"]
[BlackElo "2019"]
[TimeControl "180+1"]
[EndTime "10:30:30 PDT"]
[Termination "Sn00pPawn won on time"]

1. e4 {[%clk 0:03:00.9]} 1... c5 {[%clk 0:02:59.3]} 2. Nf3 {[%clk 0:02:59.3]}
2... d6 {[%clk 0:02:59.7]} 3. d4 {[%clk 0:02:59.2]} 3... cxd4 {[%clk 0:03:00.6]}
4. Nxd4 {[%clk 0:02:59.9]} 4... Nf6 {[%clk 0:03:01.2]} 5. Nc3 {[%clk 0:03:00.6]}
5... a6 {[%clk 0:03:01.7]} 6. Be3 {[%clk 0:03:01.2]} 6... Ng4 {[%clk 0:03:01]}
7. Bc1 {[%clk 0:03:00]} 7... Nf6 {[%clk 0:03:00.3]} 8. f3 {[%clk 0:02:59.9]}
8... e5 {[%clk 0:02:59.7]} 9. Nb3 {[%clk 0:03:00.3]} 9... Be6 {[%clk 0:02:58.7]}
10. Be3 {[%clk 0:03:00.8]} 10... Nbd7 {[%clk 0:02:57.5]} 11. Qd2 {[%clk
0:03:00.8]} 11... Qc7 {[%clk 0:02:53.9]} 12. O-O-O {[%clk 0:03:00.5]} 12... b5
{[%clk 0:02:53.3]} 13. g4 {[%clk 0:03:00.2]} 13... h6 {[%clk 0:02:38.9]} 14. h4
{[%clk 0:02:57.8]} 14... Rb8 {[%clk 0:02:29.6]} 15. Bd3 {[%clk 0:02:45.8]} 15...
b4 {[%clk 0:02:10.2]} 16. Ne2 {[%clk 0:02:27.7]} 16... a5 {[%clk 0:02:05.2]} 17.
g5 {[%clk 0:02:26.7]} 17... Nh5 {[%clk 0:02:02.7]} 18. g6 {[%clk 0:02:16.5]}
18... a4 {[%clk 0:01:37.7]} 19. gxf7+ {[%clk 0:02:11.3]} 19... Kxf7 {[%clk
0:01:21.6]} 20. Na1 {[%clk 0:02:02.4]} 20... Bxa2 {[%clk 0:01:04.2]} 21. f4
{[%clk 0:01:59.4]} 21... b3 {[%clk 0:00:55.6]} 22. fxe5 {[%clk 0:01:51.7]} 22...
Nxe5 {[%clk 0:00:40.3]} 23. Rhf1+ {[%clk 0:01:39.7]} 23... Nf6 {[%clk
0:00:37.7]} 24. c3 {[%clk 0:01:24.4]} 24... a3 {[%clk 0:00:25.3]} 25. Nf4 {[%clk
0:01:08.5]} 25... Be7 {[%clk 0:00:15.6]} 26. Nd5 {[%clk 0:01:01.9]} 26... Qa5
{[%clk 0:00:14.3]} 27. Bd4 {[%clk 0:00:46.7]} 27... Rhc8 {[%clk 0:00:12.5]} 28.
Rf5 {[%clk 0:00:21.6]} 28... Rb7 {[%clk 0:00:11.5]} 29. Bxe5 {[%clk 0:00:11.6]}
29... dxe5 {[%clk 0:00:09.6]} 30. Rxe5 {[%clk 0:00:09.2]} 30... Nxd5 {[%clk
0:00:06.4]} 31. Rxd5 {[%clk 0:00:07.3]} 31... Qa8 {[%clk 0:00:03.9]} 32. Rf1+
{[%clk 0:00:04]} 32... Kg8 {[%clk 0:00:03.1]} 33. c4 {[%clk 0:00:01.8]} 33...
axb2+ {[%clk 0:00:02.9]} 34. Kxb2 {[%clk 0:00:01.6]} 34... Ba3+ {[%clk
0:00:02.9]} 35. Kc3 {[%clk 0:00:01.4]} 35... b2 {[%clk 0:00:03.4]} 36. Kd4
{[%clk 0:00:01.2]} 36... bxa1=Q+ {[%clk 0:00:03]} 0-1

[Event "*** SCC Grand Prix: Titled Tuesday Blitz"]
[Site "Chess.com"]
[Date "2020.08.25"]
[Round "3"]
[White "Nafania1"]
[Black "shineatchess"]
[Result "1-0"]
[WhiteElo "2439"]
[BlackElo "2205"]
[TimeControl "180+1"]
[EndTime "10:30:36 PDT"]
[Termination "Nafania1 won by resignation"]

1. e4 {[%clk 0:03:00.9]} 1... Nf6 {[%clk 0:02:59.5]} 2. e5 {[%clk 0:03:00.8]}
2... Nd5 {[%clk 0:02:59.6]} 3. d4 {[%clk 0:03:01.2]} 3... Nb6 {[%clk 0:02:59.8]}
4. c4 {[%clk 0:02:59.9]} 4... d6 {[%clk 0:02:59.6]} 5. exd6 {[%clk 0:03:00.3]}
5... cxd6 {[%clk 0:02:59.7]} 6. Nc3 {[%clk 0:02:59.8]} 6... g6 {[%clk
0:03:00.2]} 7. Be3 {[%clk 0:02:58.9]} 7... Bg7 {[%clk 0:03:00.3]} 8. Rc1 {[%clk
0:02:58.6]} 8... O-O {[%clk 0:03:00.3]} 9. b3 {[%clk 0:02:58.8]} 9... Bf5 {[%clk
0:03:00.5]} 10. g4 {[%clk 0:02:53.4]} 10... Bc8 {[%clk 0:02:49.4]} 11. Bg2
{[%clk 0:02:40.3]} 11... Nc6 {[%clk 0:02:46]} 12. d5 {[%clk 0:02:32.5]} 12...
Ne5 {[%clk 0:02:44.5]} 13. h3 {[%clk 0:02:32.9]} 13... e6 {[%clk 0:02:12.3]} 14.
Nge2 {[%clk 0:02:14.5]} 14... f5 {[%clk 0:01:54.6]} 15. dxe6 {[%clk 0:02:00.2]}
15... fxg4 {[%clk 0:01:50]} 16. Nd4 {[%clk 0:02:00.1]} 16... Nf3+ {[%clk
0:01:40.9]} 17. Nxf3 {[%clk 0:01:58]} 17... gxf3 {[%clk 0:01:41.1]} 18. Bxf3
{[%clk 0:01:58.4]} 18... Qf6 {[%clk 0:01:26.6]} 19. Bg2 {[%clk 0:01:08.7]} 19...
Qxe6 {[%clk 0:01:21.7]} 20. O-O {[%clk 0:01:05.9]} 20... Bxc3 {[%clk 0:01:01.1]}
21. Rxc3 {[%clk 0:00:53.3]} 21... Qf6 {[%clk 0:01:00.7]} 22. Bd4 {[%clk
0:00:50.9]} 22... Qh4 {[%clk 0:01:00.6]} 23. Rg3 {[%clk 0:00:40]} 23... Be6
{[%clk 0:00:48.5]} 24. Bb2 {[%clk 0:00:33.5]} 24... Rf7 {[%clk 0:00:43.2]} 25.
Qxd6 {[%clk 0:00:29.3]} 25... Re8 {[%clk 0:00:41.3]} 26. Qe5 {[%clk 0:00:27.7]}
26... Kf8 {[%clk 0:00:35]} 27. Qh8+ {[%clk 0:00:26.3]} 27... Ke7 {[%clk
0:00:35.2]} 28. Ba3+ {[%clk 0:00:26.5]} 28... Kd8 {[%clk 0:00:31.1]} 29. Rd3+
{[%clk 0:00:25.8]} 29... Rd7 {[%clk 0:00:28.3]} 30. Rxd7+ {[%clk 0:00:23.7]}
30... Bxd7 {[%clk 0:00:28.1]} 31. Qc3 {[%clk 0:00:22.5]} 31... Re6 {[%clk
0:00:22.9]} 32. c5 {[%clk 0:00:21.3]} 32... Nc8 {[%clk 0:00:21.5]} 33. Qa5+
{[%clk 0:00:20.6]} 33... b6 {[%clk 0:00:20.4]} 34. cxb6 {[%clk 0:00:19.8]} 34...
Nxb6 {[%clk 0:00:20.6]} 35. Qxa7 {[%clk 0:00:19.6]} 35... Rf6 {[%clk 0:00:17.9]}
36. Qb8+ {[%clk 0:00:19.5]} 36... Nc8 {[%clk 0:00:16.8]} 37. Bc5 {[%clk
0:00:17.3]} 37... Bxh3 {[%clk 0:00:11.5]} 38. Rd1+ {[%clk 0:00:15.4]} 38... Ke8
{[%clk 0:00:10.5]} 39. Qc7 {[%clk 0:00:11.6]} 39... Qxf2+ {[%clk 0:00:06.9]} 40.
Bxf2 {[%clk 0:00:10.7]} 1-0